Workbook

Sheet КСП 2024 оформлено
D1: ПРИЛОЖЕНИЕ 4 к краткосрочному плану реализации региональной программы капитального ремонта общего имущества в многоквартирных домах Челябинской области на 2024-2026 годы
A2: Реестр многоквартирных домов по оказанию услуг и выполнению работ (в рамках I этапа Плана)
D3: ПРИЛОЖЕНИЕ 2 к краткосрочному плану реализации региональной программы капитального ремонта общего имущества в многоквартирных домах Челябинской области на 2024 - 2026 годы
A6: Реестр многоквартирных домов по оказанию услуг и выполнению работ (в рамках I этапа Плана)
A7: № п/п | B7: Адрес многоквартирного дома* | C7: Стоимость капитального ремонта, всего | D7: Виды ремонта, установленные частью 1 статьи 166 Жилищного кодекса Российской Федерации | K7: Виды ремонта, установленные частью 1 статьи 166 Жилищного кодекса Российской Федерации | S7: Виды ремонта, установленные нормативным правовым актом Челябинской области | U7: Стоимость оказания услуг и выполнения работ по разработке проектной документации, всего | V7: Оказание услуг и выполнение работ по разработке проектной документации видов ремонта, установленных частью 1 статьи 166 Жилищного кодекса Российской Федерации | AI7: Оказание услуг и выполнение работ по разработке проектной документации видов ремонта, установленных нормативным правовым актом Челябинской области | AK7: Стоимость осуществления строительного контроля, всего | AL7: Осуществление строительного контроля работ, установленных частью 1 статьи 166 Жилищного кодекса Российской Федерации | AW7: Осуществление строительного контроля работ, установленных нормативным правовым актом Челябинской области
D8: ремонт внутридомовых инженерных систем | E8: ремонт внутридомовых инженерных систем | K8: ремонт крыши | M8: ремонт подвальных помещений | O8: ремонт фасада | Q8: ремонт фундамента | S8: установка коллективных (общедомовых) узлов управления потреблением горячей воды | T8: установка коллективных (общедомовых) узлов управления потреблением тепловой энергии | V8: ремонт внутридомовых инженерных систем | W8: ремонт внутридомовых инженерных систем | AC8: ремонт крыши | AE8: ремонт подвальных помещений | AF8: ремонт фасада | AH8: ремонт фундамента | AI8: установка коллективных (общедомовых) узлов управления потреблением горячей воды | AJ8: установка коллективных (общедомовых) узлов управления потреблением тепловой энергии | AL8: ремонт внутридомовых инженерных систем | AM8: ремонт внутридомовых инженерных систем | AS8: ремонт крыши | AT8: ремонт подвальных помещений | AU8: ремонт фасада | AV8: ремонт фундамента | AW8: установка коллективных (общедомовых) узлов управления потреблением горячей воды | AX8: установка коллективных (общедомовых) узлов управления потреблением тепловой энергии
E9: ЭЭ** | F9: ГВС*** | G9: ХВС**** | H9: ТС***** | I9: ВО****** | J9: ГС******* | W9: ЭЭ | X9: ГВС | Y9: ХВС | Z9: ТС | AA9: ВО | AB9: ГС | AC9: ОСК | AD9: ПСД | AF9: ОСК | AG9: ПСД | AM9: ЭЭ | AN9: ГВС | AO9: ХВС | AP9: ТС | AQ9: ВО | AR9: ГС
C10: рублей | D10: рублей | E10: рублей | F10: рублей | G10: рублей | H10: рублей | I10: рублей | J10: рублей | K10: кв. метров | L10: рублей | M10: кв. метров | N10: рублей | O10: кв. метров | P10: рублей | Q10: куб. метров | R10: рублей | S10: рублей | T10: рублей | U10: рублей | V10: рублей | W10: рублей | X10: рублей | Y10: рублей | Z10: рублей | AA10: рублей | AB10: рублей | AC10: рублей | AD10: рублей | AE10: рублей | AF10: рублей | AG10: рублей | AH10: рублей | AI10: рублей | AJ10: рублей | AK10: рублей | AL10: рублей | AM10: рублей | AN10: рублей | AO10: рублей | AP10: рублей | AQ10: рублей | AR10: рублей | AS10: рублей | AT10: рублей | AU10: рублей | AV10: рублей | AW10: рублей | AX10: рублей
A11: 1 | B11: 2 | C11: 3 | D11: 4 | E11: 5 | F11: 6 | G11: 7 | H11: 8 | I11: 9 | J11: 10 | K11: 11 | L11: 12 | M11: 13 | N11: 14 | O11: 15 | P11: 16 | Q11: 17 | R11: 18 | S11: 19 | T11: 20 | U11: 21 | V11: 22 | W11: 23 | X11: 24 | Y11: 25 | Z11: 26 | AA11: 27 | AB11: 28 | AD11: 29 | AE11: 30 | AG11: 31 | AH11: 32 | AI11: 33 | AJ11: 34 | AK11: 35 | AL11: 36 | AM11: 37 | AN11: 38 | AO11: 39 | AP11: 40 | AQ11: 41 | AR11: 42 | AS11: 43 | AT11: 44 | AU11: 45 | AV11: 46 | AW11: 47 | AX11: 48
A12: Верхнеуфалейский городской округ
A13: 1. | B13: г. Верхний Уфалей, ул. Некрасова, д. 8 | C13: =SUM(D13,L13,N13,P13,R13:U13,AK13) -> 5655514.72 | D13: =SUM(E13:J13) -> 0 | K13: 358 | L13: 5134841.77 | U13: =SUM(W13:AJ13) -> 410787.34 | V13: =SUM(W13:AB13) -> 0 | AD13: 410787.34 | AK13: =SUM(AM13:AX13) -> 109885.61 | AL13: =SUM(AM13:AR13) -> 0 | AS13: 109885.61
A14: 2. | B14: г. Верхний Уфалей, ул. Победы, д. 34 | C14: =SUM(D14,L14,N14,P14,R14:U14,AK14) -> 4496580.13 | D14: =SUM(E14:J14) -> 0 | K14: 863 | L14: 4029543.63 | U14: =SUM(W14:AJ14) -> 392625.78 | V14: 0 | AD14: 392625.78 | AK14: =SUM(AM14:AX14) -> 74410.72 | AL14: 0 | AS14: 74410.72
A15: Итого по Верхнеуфалейскому городскому округу | C15: =SUM(C12:C14) -> 10152094.85 | D15: =SUM(D12:D14) -> 0 | E15: 0 | F15: 0 | G15: 0 | H15: 0 | I15: 0 | J15: 0 | K15: 1221 | L15: 9164385.4 | M15: 0 | N15: 0 | O15: 0 | P15: 0 | Q15: 0 | R15: 0 | S15: 0 | T15: 0 | U15: 803413.12 | V15: 0 | W15: 0 | X15: 0 | Y15: 0 | Z15: 0 | AA15: 0 | AB15: 0 | AC15: 0 | AD15: 803413.12 | AE15: 0 | AF15: 0 | AG15: 0 | AH15: 0 | AI15: 0 | AJ15: 0 | AK15: 184296.33 | AL15: 0 | AM15: 0 | AN15: 0 | AO15: 0 | AP15: 0 | AQ15: 0 | AR15: 0 | AS15: 184296.33 | AT15: 0 | AU15: 0 | AV15: 0 | AW15: 0 | AX15: 0
A16: Златоустовский городской округ
A17: 3. | B17: г. Златоуст, ул. Генераторная, д. 57 | C17: =SUM(D17,L17,N17,P17,R17:U17,AK17) -> 65061.21 | D17: =SUM(E17:J17) -> 0 | U17: =SUM(W17:AJ17) -> 65061.21 | V17: =SUM(W17:AB17) -> 0 | AC17: 65061.21 | AK17: =SUM(AM17:AX17) -> 0 | AL17: =SUM(AM17:AR17) -> 0
A18: 4. | B18: г. Златоуст, ул. Дачная, д. 1 | C18: 132663.24 | D18: 0 | U18: 132663.24 | V18: 0 | AC18: 132663.24 | AK18: 0 | AL18: 0
A19: 5. | B19: г. Златоуст, ул. Дачная, д. 3 | C19: 132663.24 | D19: 0 | U19: 132663.24 | V19: 0 | AC19: 132663.24 | AK19: 0 | AL19: 0
A20: 6. | B20: г. Златоуст, ул. Дачная, д. 5 | C20: 132771.36 | D20: 0 | U20: 132771.36 | V20: 0 | AC20: 132771.36 | AK20: 0 | AL20: 0
A21: 7. | B21: г. Златоуст, ул. им. Б.А. Ручьева, д. 11 | C21: 118337.34 | D21: 0 | U21: 118337.34 | V21: 0 | AC21: 118337.34 | AK21: 0 | AL21: 0
A22: 8. | B22: г. Златоуст, ул. им. И.В. Мичурина, д. 150 | C22: 48167.46 | D22: 0 | U22: 48167.46 | V22: 0 | AC22: 48167.46 | AK22: 0 | AL22: 0
A23: 9. | B23: г. Златоуст, ул. им. Карла Маркса, д. 11 | C23: 6113581.97 | D23: 4706736.43 | E23: 4706736.43 | U23: 1306121.38 | V23: 675312.76 | W23: 675312.76 | AC23: 630808.62 | AK23: 100724.16 | AL23: 100724.16 | AM23: 100724.16
A24: 10. | B24: г. Златоуст, ул. им. Карла Маркса, д. 37 | C24: 8662764.22 | D24: 0 | K24: 919.05 | L24: 7865229.9 | U24: 629218.4 | V24: 0 | AD24: 629218.4 | AK24: 168315.92 | AL24: 0 | AS24: 168315.92
A25: 11. | B25: г. Златоуст, ул. им. Карла Маркса, д. 4 | C25: 1632870.56 | D25: 0 | U25: 1632870.56 | V25: 0 | AD25: 1632870.56 | AK25: 0 | AL25: 0
A26: Итого по Златоустовскому городскому округу | C26: =SUM(C16:C25) -> 17038880.6 | D26: =SUM(D16:D25) -> 4706736.43 | E26: 4706736.43 | F26: 0 | G26: 0 | H26: 0 | I26: 0 | J26: 0 | K26: 919.05 | L26: 7865229.9 | M26: 0 | N26: 0 | O26: 0 | P26: 0 | Q26: 0 | R26: 0 | S26: 0 | T26: 0 | U26: 4197874.19 | V26: 675312.76 | W26: 675312.76 | X26: 0 | Y26: 0 | Z26: 0 | AA26: 0 | AB26: 0 | AC26: 1260472.47 | AD26: 2262088.96 | AE26: 0 | AF26: 0 | AG26: 0 | AH26: 0 | AI26: 0 | AJ26: 0 | AK26: 269040.08 | AL26: 100724.16 | AM26: 100724.16 | AN26: 0 | AO26: 0 | AP26: 0 | AQ26: 0 | AR26: 0 | AS26: 168315.92 | AT26: 0 | AU26: 0 | AV26: 0 | AW26: 0 | AX26: 0
A27: Карабашский городской округ
A28: 12. | B28: г. Карабаш, ул. Ватутина, д. 10 | C28: =SUM(D28,L28,N28,P28,R28:U28,AK28) -> 76116.48 | D28: =SUM(E28:J28) -> 0 | U28: =SUM(W28:AJ28) -> 76116.48 | V28: =SUM(W28:AB28) -> 0 | AC28: 76116.48 | AK28: =SUM(AM28:AX28) -> 0 | AL28: =SUM(AM28:AR28) -> 0
A29: 13. | B29: г. Карабаш, ул. Ватутина, д. 6 | C29: 76116.48 | D29: 0 | U29: 76116.48 | V29: 0 | AC29: 76116.48 | AK29: 0 | AL29: 0
A30: 14. | B30: г. Карабаш, ул. Гагарина, д. 10 | C30: 548279.33 | D30: 495488.63 | E30: 495488.63 | U30: 39639.09 | V30: 39639.09 | W30: 39639.09 | AK30: 13151.61 | AL30: 13151.61 | AM30: 13151.61
A31: 15. | B31: г. Карабаш, ул. Гагарина, д. 11 | C31: 958627.21 | D31: 910188.11 | E31: 441475.39 | I31: 468712.72 | U31: 35318.03 | V31: 35318.03 | W31: 35318.03 | AK31: 13121.07 | AL31: 13121.07 | AM31: 8023.32 | AQ31: 5097.75
A32: 16. | B32: г. Карабаш, ул. Гагарина, д. 14 | C32: 4731373.77 | D32: 4308401.35 | E32: 487223.76 | F32: 481630.33 | G32: 353824.49 | H32: 2985722.77 | U32: 344672.11 | V32: 344672.11 | W32: 38977.9 | X32: 38530.43 | Y32: 28305.96 | Z32: 238857.82 | AK32: 78300.31 | AL32: 78300.31 | AM32: 8854.74 | AN32: 8753.08 | AO32: 6430.36 | AP32: 54262.13
A33: 17. | B33: г. Карабаш, ул. Гагарина, д. 16 | C33: 4811580.29 | D33: 4381167.9 | E33: 508392.47 | F33: 455945.82 | G33: 320638.92 | H33: 3096190.69 | U33: 350493.44 | V33: 350493.44 | W33: 40671.4 | X33: 36475.67 | Y33: 25651.11 | Z33: 247695.26 | AK33: 79918.95 | AL33: 79918.95 | AM33: 9535.64 | AN33: 8286.3 | AO33: 5827.25 | AP33: 56269.76
A34: 18. | B34: г. Карабаш, ул. Декабристов, д. 23 | C34: 42383.04 | D34: 0 | U34: 42383.04 | V34: 0 | AC34: 42383.04 | AK34: 0 | AL34: 0
A35: 19. | B35: г. Карабаш, ул. Декабристов, д. 24 | C35: 44815.74 | D35: 0 | U35: 44815.74 | V35: 0 | AC35: 44815.74 | AK35: 0 | AL35: 0
A36: 20. | B36: г. Карабаш, ул. Декабристов, д. 27 | C36: 10273586.69 | D36: 0 | K36: 562 | L36: 8103588.95 | Q36: =R36/1344 -> 931.2247024 | R36: 1251566 | U36: 748412.4 | V36: 0 | AD36: 648287.12 | AH36: 100125.28 | AK36: 170019.34 | AL36: 0 | AS36: 147273.56 | AV36: 22745.78
A37: 21. | B37: г. Карабаш, ул. Ключевая, д. 14 | C37: 25666689.13 | D37: 4540416.18 | F37: 2959676.24 | G37: 1580739.94 | K37: 1188 | L37: 18831738.15 | U37: 1869772.35 | V37: 363233.3 | X37: 236774.1 | Y37: 126459.2 | AD37: 1506539.05 | AK37: 424762.45 | AL37: 82516.93 | AN37: 53788.77 | AO37: 28728.16 | AS37: 342245.52
A38: 22. | B38: г. Карабаш, ул. Комарова, д. 7 | C38: 15191866.48 | D38: 0 | K38: 560 | L38: 6051188.66 | O38: 987 | P38: 6573175.52 | Q38: 75 | R38: 1209389.23 | U38: 1106700.27 | V38: 0 | AD38: 484095.09 | AG38: 525854.04 | AH38: 96751.14 | AK38: 251412.8 | AL38: 0 | AS38: 109973.5 | AU38: 119460.02 | AV38: 21979.28
A39: 23. | B39: г. Карабаш, ул. Комсомольская, д. 19 | C39: 13225356.09 | D39: 0 | K39: 560 | L39: 4159800.23 | O39: 470 | P39: 6586724.52 | Q39: 80 | R39: 1231785.32 | U39: 958264.81 | V39: 0 | AD39: 332784.02 | AG39: 526937.96 | AH39: 98542.83 | AK39: 288781.21 | AL39: 0 | AS39: 146688.65 | AU39: 119706.26 | AV39: 22386.3
A40: 24. | B40: г. Карабаш, ул. Комсомольская, д. 21 | C40: 9228791.06 | D40: 0 | O40: 948 | P40: 6860757.91 | Q40: 75 | R40: 1238133.42 | U40: 982711.55 | V40: 0 | AD40: 334800.25 | AG40: 548860.63 | AH40: 99050.67 | AK40: 147188.18 | AL40: 0 | AU40: 124686.51 | AV40: 22501.67
A41: 25. | B41: г. Карабаш, ул. Островского, д. 2, корп. А | C41: 7664829.99 | D41: 6974305.7 | E41: 790021.84 | F41: 733014.55 | G41: 485383.83 | H41: 4965885.48 | U41: 557944.46 | V41: 557944.46 | W41: 63201.75 | X41: 58641.16 | Y41: 38830.71 | Z41: 397270.84 | AK41: 132579.83 | AL41: 132579.83 | AM41: 20187.47 | AN41: 13321.71 | AO41: 8821.3 | AP41: 90249.35
A42: Итого по Карабашскому городскому округу | C42: =SUM(C27:C41) -> 92540411.78 | D42: =SUM(D27:D41) -> 21609967.87 | E42: 2722602.09 | F42: 4630266.94 | G42: 2740587.18 | H42: 11047798.94 | I42: 468712.72 | J42: 0 | K42: 2870 | L42: 37146315.99 | M42: 0 | N42: 0 | O42: 2405 | P42: 20020657.95 | Q42: 1161.224702 | R42: 4930873.97 | S42: 0 | T42: 0 | U42: 7233360.25 | V42: 1691300.43 | W42: 217808.17 | X42: 370421.36 | Y42: 219246.98 | Z42: 883823.92 | AA42: 0 | AB42: 0 | AC42: 239431.74 | AD42: 3306505.53 | AE42: 0 | AF42: 0 | AG42: 1601652.63 | AH42: 394469.92 | AI42: 0 | AJ42: 0 | AK42: 1599235.75 | AL42: 399588.7 | AM42: 59752.78 | AN42: 84149.86 | AO42: 49807.07 | AP42: 200781.24 | AQ42: 5097.75 | AR42: 0 | AS42: 746181.23 | AT42: 0 | AU42: 363852.79 | AV42: 89613.03 | AW42: 0 | AX42: 0
A43: Копейский городской округ
A44: 26. | B44: г. Копейск, ул. Жигулевская, д. 1 | C44: =SUM(D44,L44,N44,P44,R44:U44,AK44) -> 543579.81 | D44: =SUM(E44:J44) -> 526757.64 | E44: 526757.64 | U44: =SUM(W44:AJ44) -> 0 | V44: =SUM(W44:AB44) -> 0 | AK44: =SUM(AM44:AX44) -> 16822.17 | AL44: =SUM(AM44:AR44) -> 16822.17 | AM44: 16822.17
A45: 27. | B45: г. Копейск, ул. Театральная, д. 12 | C45: 481367.12 | D45: 469751.82 | E45: 469751.82 | U45: 0 | V45: 0 | AK45: 11615.3 | AL45: 11615.3 | AM45: 11615.3
A46: 28. | B46: г. Копейск, ул. Темника, д. 2 | C46: 810812.29 | D46: 788783.26 | E46: 788783.26 | U46: 0 | V46: 0 | AK46: 22029.03 | AL46: 22029.03 | AM46: 22029.03
A47: 29. | B47: г. Копейск, ул. Элеваторная, д. 13 | C47: 468453.5 | D47: 452405.69 | E47: 452405.69 | U47: 0 | V47: 0 | AK47: 16047.81 | AL47: 16047.81 | AM47: 16047.81
A48: Итого по Копейскому городскому округу | C48: =SUM(C43:C47) -> 2304212.72 | D48: =SUM(D43:D47) -> 2237698.41 | E48: 2237698.41 | F48: 0 | G48: 0 | H48: 0 | I48: 0 | J48: 0 | K48: 0 | L48: 0 | M48: 0 | N48: 0 | O48: 0 | P48: 0 | Q48: 0 | R48: 0 | S48: 0 | T48: 0 | U48: 0 | V48: 0 | W48: 0 | X48: 0 | Y48: 0 | Z48: 0 | AA48: 0 | AB48: 0 | AC48: 0 | AD48: 0 | AE48: 0 | AF48: 0 | AG48: 0 | AH48: 0 | AI48: 0 | AJ48: 0 | AK48: 66514.31 | AL48: 66514.31 | AM48: 66514.31 | AN48: 0 | AO48: 0 | AP48: 0 | AQ48: 0 | AR48: 0 | AS48: 0 | AT48: 0 | AU48: 0 | AV48: 0 | AW48: 0 | AX48: 0
A49: Кыштымский городской округ
A50: 30. | B50: г. Кыштым, ул. Боровая, д. 11 | C50: =SUM(D50,L50,N50,P50,R50:U50,AK50) -> 415284.85 | D50: =SUM(E50:J50) -> 409255.44 | E50: 409255.44 | U50: =SUM(W50:AJ50) -> 0 | V50: =SUM(W50:AB50) -> 0 | AK50: =SUM(AM50:AX50) -> 6029.41 | AL50: =SUM(AM50:AR50) -> 6029.41 | AM50: 6029.41
A51: 31. | B51: г. Кыштым, ул. Боровая, д. 9 | C51: 400412.57 | D51: 394599.09 | E51: 394599.09 | U51: 0 | V51: 0 | AK51: 5813.48 | AL51: 5813.48 | AM51: 5813.48
A52: 32. | B52: г. Кыштым, ул. Ленина, д. 30 | C52: 3799113.66 | D52: 225410.49 | F52: 118921.21 | G52: 106489.28 | K52: 389 | L52: 1997545.28 | O52: 507 | P52: 1515700.61 | U52: 0 | V52: 0 | AK52: 60457.28 | AL52: 3320.89 | AN52: 1752.02 | AO52: 1568.87 | AS52: 34806.12 | AU52: 22330.27
A53: 33. | B53: г. Кыштым, ул. Ленина, д. 31А | C53: 7563318.94 | D53: 1103934.19 | E53: 461075.04 | F53: 103388.46 | G53: 107382.39 | I53: 432088.3 | K53: 568.44 | L53: 2901002.1 | O53: 795.2 | P53: 3444645.82 | U53: 0 | V53: 0 | AK53: 113736.83 | AL53: 17991.15 | AM53: 6792.85 | AN53: 2035.04 | AO53: 2255.05 | AQ53: 6908.21 | AS53: 44996.96 | AU53: 50748.72
A54: 34. | B54: г. Кыштым, ул. Ленина, д. 37 | C54: 2258.53 | D54: 0 | U54: 0 | V54: 0 | AK54: 2258.53 | AL54: 0 | AT54: 2258.53
A55: 35. | B55: г. Кыштым, ул. Металлургов, д. 22 | C55: 5274761.75 | D55: 0 | K55: 596 | L55: 5233413.6 | U55: 0 | V55: 0 | AK55: 41348.15 | AL55: 0 | AS55: 41348.15
A56: Итого по Кыштымскому городскому округу | C56: =SUM(C49:C55) -> 17455150.3 | D56: =SUM(D49:D55) -> 2133199.21 | E56: 1264929.57 | F56: 222309.67 | G56: 213871.67 | H56: 0 | I56: 432088.3 | J56: 0 | K56: 1553.44 | L56: 10131960.98 | M56: 0 | N56: 0 | O56: 1302.2 | P56: 4960346.43 | Q56: 0 | R56: 0 | S56: 0 | T56: 0 | U56: 0 | V56: 0 | W56: 0 | X56: 0 | Y56: 0 | Z56: 0 | AA56: 0 | AB56: 0 | AC56: 0 | AD56: 0 | AE56: 0 | AF56: 0 | AG56: 0 | AH56: 0 | AI56: 0 | AJ56: 0 | AK56: 229643.68 | AL56: 33154.93 | AM56: 18635.74 | AN56: 3787.06 | AO56: 3823.92 | AP56: 0 | AQ56: 6908.21 | AR56: 0 | AS56: 121151.23 | AT56: 2258.53 | AU56: 73078.99 | AV56: 0 | AW56: 0 | AX56: 0
A57: Локомотивный городской округ
A58: 36. | B58: пгт. Локомотивный, ул. Школьная, д. 56 | C58: =SUM(D58,L58,N58,P58,R58:U58,AK58) -> 2721045.28 | D58: =SUM(E58:J58) -> 0 | K58: 957.2 | L58: 2470533.2 | U58: =SUM(W58:AJ58) -> 197642.66 | V58: =SUM(W58:AB58) -> 0 | AD58: 197642.66 | AK58: =SUM(AM58:AX58) -> 52869.42 | AL58: =SUM(AM58:AR58) -> 0 | AS58: 52869.42
A59: Итого по Локомотивному городскому округу | C59: =SUM(C57:C58) -> 2721045.28 | D59: =SUM(D57:D58) -> 0 | E59: 0 | F59: 0 | G59: 0 | H59: 0 | I59: 0 | J59: 0 | K59: 957.2 | L59: 2470533.2 | M59: 0 | N59: 0 | O59: 0 | P59: 0 | Q59: 0 | R59: 0 | S59: 0 | T59: 0 | U59: 197642.66 | V59: 0 | W59: 0 | X59: 0 | Y59: 0 | Z59: 0 | AA59: 0 | AB59: 0 | AC59: 0 | AD59: 197642.66 | AE59: 0 | AF59: 0 | AG59: 0 | AH59: 0 | AI59: 0 | AJ59: 0 | AK59: 52869.42 | AL59: 0 | AM59: 0 | AN59: 0 | AO59: 0 | AP59: 0 | AQ59: 0 | AR59: 0 | AS59: 52869.42 | AT59: 0 | AU59: 0 | AV59: 0 | AW59: 0 | AX59: 0
A60: Магнитогорский городской округ
A61: 37. | B61: г. Магнитогорск, пр-кт Ленина, д. 10, корп. 1 | C61: =SUM(D61,L61,N61,P61,R61:U61,AK61) -> 7021232.09 | D61: =SUM(E61:J61) -> 1914341 | E61: 1914341 | O61: 1040 | P61: 4298465.06 | Q61: 106 | R61: 709353.92 | U61: =SUM(W61:AJ61) -> 0 | V61: =SUM(W61:AB61) -> 0 | AK61: =SUM(AM61:AX61) -> 99072.11025 | AL61: =SUM(AM61:AR61) -> 5940.180246 | AM61: 5940.180246 | AU61: 77951.76 | AV61: 15180.17
A62: 38. | B62: г. Магнитогорск, пр-кт Ленина, д. 106 | C62: 7897580.96 | D62: 6997615.8 | F62: 3436908.8 | G62: 1029655 | I62: 2531052 | M62: 964 | N62: 738550.8 | U62: 0 | V62: 0 | AK62: 161414.36 | AL62: 146004.57 | AN62: 71710.77 | AO62: 21483.65 | AQ62: 52810.15 | AT62: 15409.79
A63: 39. | B63: г. Магнитогорск, пр-кт Ленина, д. 108 | C63: 7195332.23 | D63: 0 | K63: 579 | L63: 4188655.8 | O63: 208 | P63: 2859614.95 | U63: 0 | V63: 0 | AK63: 147061.48 | AL63: 0 | AS63: 87395.89 | AU63: 59665.59
A64: 40. | B64: г. Магнитогорск, пр-кт Ленина, д. 15 | C64: 1648448.47 | D64: 1623758.21 | I64: 1623758.21 | U64: 0 | V64: 0 | AK64: 24690.26 | AL64: 24690.26 | AQ64: 24690.26
A65: 41. | B65: г. Магнитогорск, пр-кт Ленина, д. 17, корп. 1 | C65: 6057094.56 | D65: 0 | O65: 1639.6 | P65: 5984988.29 | U65: 0 | V65: 0 | AK65: 72106.27 | AL65: 0 | AU65: 72106.27
A66: 42. | B66: г. Магнитогорск, пр-кт Ленина, д. 25 | C66: 9392333.45 | D66: 0 | K66: 585 | L66: 4341443.4 | M66: 444.6558773 | N66: 362394.54 | O66: 1010 | P66: 3907547.35 | Q66: 71 | R66: 588236 | U66: 0 | V66: 0 | AK66: 192712.16 | AL66: 0 | AS66: 92906.89 | AT66: 7755.24 | AU66: 79461.78 | AV66: 12588.25
A67: 43. | B67: г. Магнитогорск, пр-кт Ленина, д. 31 | C67: 4719423.992 | D67: 4711063.44 | H67: 4711063.44 | U67: 0 | V67: 0 | AK67: 8360.552 | AL67: 8360.552 | AP67: 8360.552
A68: 44. | B68: г. Магнитогорск, пр-кт Ленина, д. 58, корп. 1 | C68: 10122098.37 | D68: 0 | O68: 2400 | P68: 10073640 | U68: 0 | V68: 0 | AK68: 48458.36544 | AL68: 0 | AU68: 48458.36544
A69: 45. | B69: г. Магнитогорск, пр-кт Ленина, д. 6 | C69: 5975202.48 | D69: 0 | K69: 895.79 | L69: 5425097.58 | U69: 434007.81 | V69: 0 | AD69: 434007.81 | AK69: 116097.09 | AL69: 0 | AS69: 116097.09
A70: 46. | B70: г. Магнитогорск, ул. Аэродромная, д. 12 | C70: 2031486.23 | D70: 0 | O70: 490 | P70: 1995972.77 | U70: 0 | V70: 0 | AK70: 35513.46 | AL70: 0 | AU70: 35513.46
A71: 47. | B71: г. Магнитогорск, ул. Гагарина, д. 10 | C71: 10845925.43 | D71: 0 | K71: 1538.6 | L71: 10663368.56 | U71: 0 | V71: 0 | AK71: 182556.87 | AL71: 0 | AS71: 182556.87
A72: 48. | B72: г. Магнитогорск, ул. Герцена, д. 33 | C72: 1160027.922 | D72: 1155502.07 | E72: 1155502.07 | U72: 0 | V72: 0 | AK72: 4525.851616 | AL72: 4525.851616 | AM72: 4525.851616
A73: 49. | B73: г. Магнитогорск, ул. Герцена, д. 35 | C73: 1137441.702 | D73: 1132915.85 | E73: 1132915.85 | U73: 0 | V73: 0 | AK73: 4525.851616 | AL73: 4525.851616 | AM73: 4525.851616
A74: 50. | B74: г. Магнитогорск, ул. Дарвина, д. 47 | C74: 1783181.37 | D74: 1758289.99 | H74: 1758289.99 | U74: 0 | V74: 0 | AK74: 24891.38 | AL74: 24891.38 | AP74: 24891.38
A75: 51. | B75: г. Магнитогорск, ул. Калинина, д. 11 | C75: 47253.12 | D75: 0 | U75: 47253.12 | V75: 0 | AJ75: 47253.12 | AK75: 0 | AL75: 0
A76: 52. | B76: г. Магнитогорск, ул. Комсомольская, д. 1 | C76: 1447712.75 | D76: 0 | Q76: 129 | R76: 1417380.8 | U76: 0 | V76: 0 | AK76: 30331.95 | AL76: 0 | AV76: 30331.95
A77: 53. | B77: г. Магнитогорск, ул. Комсомольская, д. 11 | C77: 9450863.95 | D77: 4954981.46 | E77: 2073768 | H77: 2881213.46 | M77: 189.4 | N77: 429337.8 | O77: 847.7 | P77: 3179079.5 | Q77: 73 | R77: 707797.2 | U77: 0 | V77: 0 | AK77: 179667.99 | AL77: 87301 | AM77: 44378.64 | AP77: 42922.36 | AT77: 9187.83 | AU77: 68032.3 | AV77: 15146.86
A78: 54. | B78: г. Магнитогорск, ул. Комсомольская, д. 13 | C78: 717548.37 | D78: 0 | Q78: 75 | R78: 702514.56 | U78: 0 | V78: 0 | AK78: 15033.81 | AL78: 0 | AV78: 15033.81
A79: 55. | B79: г. Магнитогорск, ул. Комсомольская, д. 15 | C79: 1151523.8 | D79: 0 | M79: 181.8 | N79: 425661.3 | Q79: 75 | R79: 701736.2 | U79: 0 | V79: 0 | AK79: 24126.3 | AL79: 0 | AT79: 9109.15 | AV79: 15017.15
A80: 56. | B80: г. Магнитогорск, ул. Комсомольская, д. 17 | C80: 1127276.93 | D80: 0 | M80: 230.9 | N80: 410382.54 | Q80: 74 | R80: 693276.09 | U80: 0 | V80: 0 | AK80: 23618.3 | AL80: 0 | AT80: 8782.19 | AV80: 14836.11
A81: 57. | B81: г. Магнитогорск, ул. Комсомольская, д. 19 | C81: 1377334.2 | D81: 0 | Q81: 189 | R81: 1348476.8 | U81: 0 | V81: 0 | AK81: 28857.4 | AL81: 0 | AV81: 28857.4
A82: 58. | B82: г. Магнитогорск, ул. Комсомольская, д. 2 | C82: 14427977.31 | D82: 13686018.28 | E82: 2331966.72 | F82: 2342392 | G82: 944735 | H82: 5937506.56 | I82: 2129418 | M82: 386 | N82: 464400 | U82: 0 | V82: 0 | AK82: 277559.03 | AL82: 267620.87 | AM82: 49904.09 | AN82: 50127.19 | AO82: 20217.33 | AP82: 101802.71 | AQ82: 45569.55 | AT82: 9938.16
A83: 59. | B83: г. Магнитогорск, ул. Комсомольская, д. 20 | C83: 393893.72 | D83: 0 | M83: 249 | N83: 385641 | U83: 0 | V83: 0 | AK83: 8252.72 | AL83: 0 | AT83: 8252.72
A84: 60. | B84: г. Магнитогорск, ул. Комсомольская, д. 23 | C84: 1362346.18 | D84: 0 | Q84: 144.3 | R84: 1333802.8 | U84: 0 | V84: 0 | AK84: 28543.38 | AL84: 0 | AV84: 28543.38
A85: 61. | B85: г. Магнитогорск, ул. Комсомольская, д. 3 | C85: 688458.57 | D85: 0 | Q85: 164.44 | R85: 674034.24 | U85: 0 | V85: 0 | AK85: 14424.33 | AL85: 0 | AV85: 14424.33
A86: 62. | B86: г. Магнитогорск, ул. Комсомольская, д. 3/1 | C86: 1016839.65 | D86: 0 | Q86: 99 | R86: 995535.2 | U86: 0 | V86: 0 | AK86: 21304.45 | AL86: 0 | AV86: 21304.45
A87: 63. | B87: г. Магнитогорск, ул. Комсомольская, д. 4 | C87: 9989955.53 | D87: 0 | K87: 1494 | L87: 9797432 | U87: 0 | V87: 0 | AK87: 192523.53 | AL87: 0 | AS87: 192523.53
A88: 64. | B88: г. Магнитогорск, ул. Комсомольская, д. 5 | C88: 762043.25 | D88: 0 | Q88: 57 | R88: 746077.2 | U88: 0 | V88: 0 | AK88: 15966.05 | AL88: 0 | AV88: 15966.05
A89: 65. | B89: г. Магнитогорск, ул. Комсомольская, д. 7 | C89: 1434862.15 | D89: 0 | Q89: 130 | R89: 1404799.44 | U89: 0 | V89: 0 | AK89: 30062.71 | AL89: 0 | AV89: 30062.71
A90: 66. | B90: г. Магнитогорск, ул. Комсомольская, д. 8 | C90: 11087258.03 | D90: 10318329.75 | E90: 4338605 | F90: 685647.68 | G90: 377893.89 | H90: 3715919.35 | I90: 1200263.83 | M90: 306 | N90: 647683.2 | U90: 0 | V90: 0 | AK90: 121245.078 | AL90: 107384.658 | AM90: 5131.368 | AN90: 11724.57 | AO90: 6461.99 | AP90: 63542.22 | AQ90: 20524.51 | AT90: 13860.42
A91: 67. | B91: г. Магнитогорск, ул. Комсомольская, д. 9 | C91: 686451.48 | D91: 0 | Q91: 75 | R91: 672069.2 | U91: 0 | V91: 0 | AK91: 14382.28 | AL91: 0 | AV91: 14382.28
A92: 68. | B92: г. Магнитогорск, ул. Корсикова, д. 23 | C92: 349077.84 | D92: 343726.26 | I92: 343726.26 | U92: 0 | V92: 0 | AK92: 5351.58 | AL92: 5351.58 | AQ92: 5351.58
A93: 69. | B93: г. Магнитогорск, ул. Корсикова, д. 23А | C93: 307773.06 | D93: 299421.35 | I93: 299421.35 | U93: 0 | V93: 0 | AK93: 8351.71 | AL93: 8351.71 | AQ93: 8351.71
A94: 70. | B94: г. Магнитогорск, ул. Корсикова, д. 27 | C94: 491550.84 | D94: 480928.76 | I94: 480928.76 | U94: 0 | V94: 0 | AK94: 10622.08 | AL94: 10622.08 | AQ94: 10622.08
A95: 71. | B95: г. Магнитогорск, ул. Куйбышева, д. 12 | C95: 527534.97 | D95: 0 | Q95: 78.4 | R95: 516482.25 | U95: 0 | V95: 0 | AK95: 11052.72 | AL95: 0 | AV95: 11052.72
A96: 72. | B96: г. Магнитогорск, ул. Куйбышева, д. 21 | C96: 2343011.499 | D96: 2254960.55 | F96: 889573.28 | G96: 342883.57 | I96: 1022503.7 | U96: 0 | V96: 0 | AK96: 88050.94864 | AL96: 88050.94864 | AN96: 43163.73152 | AO96: 19799.29712 | AQ96: 25087.92
A97: 73. | B97: г. Магнитогорск, ул. Куйбышева, д. 4 | C97: 6305223.64 | D97: 3938928.75 | E97: 1783034.75 | I97: 2155894 | M97: 348.1 | N97: 837158.4 | Q97: 143.4 | R97: 1380121.6 | U97: 0 | V97: 0 | AK97: 149014.89 | AL97: 101565.1 | AM97: 38156.94 | AQ97: 63408.16 | AT97: 17915.19 | AV97: 29534.6
A98: 74. | B98: г. Магнитогорск, ул. Ленинградская, д. 12 | C98: 47253.12 | D98: 0 | U98: 47253.12 | V98: 0 | AJ98: 47253.12 | AK98: 0 | AL98: 0
A99: 75. | B99: г. Магнитогорск, ул. Ленинградская, д. 22, корп. 1 | C99: 9140306.61 | D99: 0 | K99: 1078 | L99: 8948802.24 | U99: 0 | V99: 0 | AK99: 191504.37 | AL99: 0 | AS99: 191504.37
A100: 76. | B100: г. Магнитогорск, ул. Ленинградская, д. 26 | C100: 2695993.55 | D100: 0 | Q100: 145 | R100: 2639508.08 | U100: 0 | V100: 0 | AK100: 56485.47 | AL100: 0 | AV100: 56485.47
A101: 77. | B101: г. Магнитогорск, ул. Лесная, д. 12А | C101: 2818532.14 | D101: 2092707 | F101: 1399320 | I101: 693387 | M101: 561.4 | N101: 689634 | U101: 0 | V101: 0 | AK101: 36191.14 | AL101: 21432.97 | AN101: 6594.49 | AQ101: 14838.48 | AT101: 14758.17
A102: 78. | B102: г. Магнитогорск, ул. Ломоносова, д. 10 | C102: 677979.99 | D102: 0 | Q102: 70 | R102: 663775.2 | U102: 0 | V102: 0 | AK102: 14204.79 | AL102: 0 | AV102: 14204.79
A103: 79. | B103: г. Магнитогорск, ул. Ломоносова, д. 12 | C103: 747185.56 | D103: 0 | Q103: 71 | R103: 731530.8 | U103: 0 | V103: 0 | AK103: 15654.76 | AL103: 0 | AV103: 15654.76
A104: 80. | B104: г. Магнитогорск, ул. Ломоносова, д. 14 | C104: 760870.28 | D104: 0 | Q104: 72.4 | R104: 744928.8 | U104: 0 | V104: 0 | AK104: 15941.48 | AL104: 0 | AV104: 15941.48
A105: 81. | B105: г. Магнитогорск, ул. Ломоносова, д. 16 | C105: 692577.02 | D105: 0 | Q105: 71 | R105: 678066.4 | U105: 0 | V105: 0 | AK105: 14510.62 | AL105: 0 | AV105: 14510.62
A106: 82. | B106: г. Магнитогорск, ул. Ломоносова, д. 22 | C106: 738323.08 | D106: 0 | Q106: 87 | R106: 722854 | U106: 0 | V106: 0 | AK106: 15469.08 | AL106: 0 | AV106: 15469.08
A107: 83. | B107: г. Магнитогорск, ул. Ломоносова, д. 22, корп. 1 | C107: 4770702.17 | D107: 0 | K107: 460 | L107: 4674699.54 | U107: 0 | V107: 0 | AK107: 96002.63 | AL107: 0 | AS107: 96002.63
A108: 84. | B108: г. Магнитогорск, ул. Ломоносова, д. 22, корп. 2 | C108: 725029.35 | D108: 0 | Q108: 84.48 | R108: 709838.8 | U108: 0 | V108: 0 | AK108: 15190.55 | AL108: 0 | AV108: 15190.55
A109: 85. | B109: г. Магнитогорск, ул. Ломоносова, д. 26 | C109: 734934.48 | D109: 0 | Q109: 84.3 | R109: 719536.4 | U109: 0 | V109: 0 | AK109: 15398.08 | AL109: 0 | AV109: 15398.08
A110: 86. | B110: г. Магнитогорск, ул. Ломоносова, д. 26, корп. 1 | C110: 725811.33 | D110: 0 | Q110: 84.1 | R110: 710604.4 | U110: 0 | V110: 0 | AK110: 15206.93 | AL110: 0 | AV110: 15206.93
A111: 87. | B111: г. Магнитогорск, ул. Ломоносова, д. 26, корп. 2 | C111: 1607205.99 | D111: 833580 | I111: 833580 | Q111: 84.6 | R111: 739952.4 | U111: 0 | V111: 0 | AK111: 33673.59 | AL111: 17838.61 | AQ111: 17838.61 | AV111: 15834.98
A112: 88. | B112: г. Магнитогорск, ул. Ломоносова, д. 28 | C112: 690752.39 | D112: 0 | Q112: 81.9 | R112: 676280 | U112: 0 | V112: 0 | AK112: 14472.39 | AL112: 0 | AV112: 14472.39
A113: 89. | B113: г. Магнитогорск, ул. Ломоносова, д. 3, корп. 1 | C113: 1083308.28 | D113: 0 | Q113: 88.6 | R113: 1060611.2 | U113: 0 | V113: 0 | AK113: 22697.08 | AL113: 0 | AV113: 22697.08
A114: 90. | B114: г. Магнитогорск, ул. Ломоносова, д. 3, корп. 2 | C114: 684887.51 | D114: 0 | Q114: 84.9 | R114: 670538 | U114: 0 | V114: 0 | AK114: 14349.51 | AL114: 0 | AV114: 14349.51
A115: 91. | B115: г. Магнитогорск, ул. Ломоносова, д. 4 | C115: 1008628.82 | D115: 0 | Q115: 80 | R115: 987496.4 | U115: 0 | V115: 0 | AK115: 21132.42 | AL115: 0 | AV115: 21132.42
A116: 92. | B116: г. Магнитогорск, ул. Ломоносова, д. 5 | C116: 1001648.68 | D116: 0 | Q116: 88.3 | R116: 980662.5 | U116: 0 | V116: 0 | AK116: 20986.18 | AL116: 0 | AV116: 20986.18
A117: 93. | B117: г. Магнитогорск, ул. Ломоносова, д. 6 | C117: 1431551.75 | D117: 0 | Q117: 124 | R117: 1401558.4 | U117: 0 | V117: 0 | AK117: 29993.35 | AL117: 0 | AV117: 29993.35
A118: 94. | B118: г. Магнитогорск, ул. Ломоносова, д. 8 | C118: 1185967.96 | D118: 0 | M118: 182 | N118: 438393.6 | Q118: 104.51 | R118: 722726.4 | U118: 0 | V118: 0 | AK118: 24847.96 | AL118: 0 | AT118: 9381.62 | AV118: 15466.34
A119: 95. | B119: г. Магнитогорск, ул. Менделеева, д. 3 | C119: 8178861.66 | D119: 0 | K119: 560 | L119: 4050659.34 | M119: 137 | N119: 350714.88 | O119: 674 | P119: 2903215.49 | Q119: 62 | R119: 705628 | U119: 0 | V119: 0 | AK119: 168643.95 | AL119: 0 | AS119: 86684.11 | AT119: 7505.3 | AU119: 59354.1 | AV119: 15100.44
A120: 96. | B120: г. Магнитогорск, ул. Менделеева, д. 9, корп. 1 | C120: 5516083.91 | D120: 0 | K120: 699 | L120: 4131441.72 | M120: 270 | N120: 574927.2 | Q120: 76 | R120: 694144 | U120: 0 | V120: 0 | AK120: 115570.99 | AL120: 0 | AS120: 88412.87 | AT120: 12303.44 | AV120: 14854.68
A121: 97. | B121: г. Магнитогорск, ул. Московская, д. 32 | C121: 743451.46 | D121: 722763.71 | I121: 722763.71 | U121: 0 | V121: 0 | AK121: 20687.75 | AL121: 20687.75 | AQ121: 20687.75
A122: 98. | B122: г. Магнитогорск, ул. Московская, д. 34 | C122: 506418.37 | D122: 495553.03 | I122: 495553.03 | U122: 0 | V122: 0 | AK122: 10865.34 | AL122: 10865.34 | AQ122: 10865.34
A123: 99. | B123: г. Магнитогорск, ул. Московская, д. 48 | C123: 503225.51 | D123: 492035.84 | I123: 492035.84 | U123: 0 | V123: 0 | AK123: 11189.67 | AL123: 11189.67 | AQ123: 11189.67
A124: 100. | B124: г. Магнитогорск, ул. Разина, д. 13/1 | C124: 351919.12 | D124: 342837.64 | I124: 342837.64 | U124: 0 | V124: 0 | AK124: 9081.48 | AL124: 9081.48 | AQ124: 9081.48
A125: 101. | B125: г. Магнитогорск, ул. Разина, д. 3 | C125: =SUM(D125,L125,N125,P125,R125:U125,AK125) -> 284559.77 | D125: =SUM(E125:J125) -> 273370.1 | I125: 273370.1 | U125: =SUM(W125:AJ125) -> 0 | V125: =SUM(W125:AB125) -> 0 | AK125: =SUM(AM125:AX125) -> 11189.67 | AL125: =SUM(AM125:AR125) -> 11189.67 | AQ125: 11189.67
A126: 102. | B126: г. Магнитогорск, ул. Рубинштейна, д. 5 | C126: 1306728.09 | D126: 727488 | I126: 727488 | M126: 1192.9 | N126: 551862 | U126: 0 | V126: 0 | AK126: 27378.09 | AL126: 15568.24 | AQ126: 15568.24 | AT126: 11809.85
A127: 103. | B127: г. Магнитогорск, ул. Советской Армии, д. 27 | C127: 8490435.98 | D127: 7501937.3 | F127: 2567965.4 | G127: 806740 | I127: 4127231.9 | M127: 1054.349448 | N127: 859294.8 | U127: 0 | V127: 0 | AK127: 129203.88 | AL127: 110814.97 | AN127: 54954.46 | AO127: 17264.24 | AQ127: 38596.27 | AT127: 18388.91
A128: 104. | B128: г. Магнитогорск, ул. Советской Армии, д. 29 | C128: 8329250.62 | D128: 7338391.28 | F128: 2567965.4 | G128: 902275 | I128: 3868150.88 | M128: 1111 | N128: 859604.4 | U128: 0 | V128: 0 | AK128: 131254.94 | AL128: 112859.41 | AN128: 54954.46 | AO128: 19308.68 | AQ128: 38596.27 | AT128: 18395.53
A129: 105. | B129: г. Магнитогорск, ул. Советской Армии, д. 39 | C129: 10623393.66 | D129: 9310042.92 | F129: 4064522.8 | G129: 1082730 | I129: 4162790.12 | M129: 1449 | N129: 1131897.6 | U129: 0 | V129: 0 | AK129: 181453.14 | AL129: 157836.1 | AN129: 84806.27 | AO129: 22591.16 | AQ129: 50438.67 | AT129: 23617.04
A130: 106. | B130: г. Магнитогорск, ул. Советской Армии, д. 43 | C130: 3435118.41 | D130: 2809170.6 | F130: 826919.38 | G130: 361518.19 | I130: 1620733.03 | M130: 690 | N130: 534524.4 | U130: 0 | V130: 0 | AK130: 91423.41 | AL130: 80270.56 | AN130: 40984.04 | AO130: 13909.07 | AQ130: 25377.45 | AT130: 11152.85
A131: 107. | B131: г. Магнитогорск, ул. Советской Армии, д. 47 | C131: 15702799.16 | D131: 0 | K131: 1341 | L131: 9745884.55 | O131: 500 | P131: 5635971.9 | U131: 0 | V131: 0 | AK131: 320942.71 | AL131: 0 | AS131: 203348.16 | AU131: 117594.55
A132: 108. | B132: г. Магнитогорск, ул. Строителей, д. 21 | C132: 1691166.56 | D132: 0 | K132: 284 | L132: 1655374.28 | U132: 0 | V132: 0 | AK132: 35792.28 | AL132: 0 | AS132: 35792.28
A133: 109. | B133: г. Магнитогорск, ул. Строителей, д. 35, корп. 1 | C133: 5967716.41 | D133: 2448539 | E133: 1310204 | F133: 521479 | G133: 225836 | I133: 391020 | M133: 352 | N133: 417141.45 | O133: 732 | P133: 2315244 | Q133: 96 | R133: 690144 | U133: 0 | V133: 0 | AK133: 96647.96016 | AL133: 27093.70016 | AM133: 3960.120164 | AN133: 10598.64 | AO133: 4588.65 | AQ133: 7946.29 | AT133: 8477.75 | AU133: 47054.67 | AV133: 14021.84
A134: 110. | B134: г. Магнитогорск, ул. Строителей, д. 35/2 | C134: 4165115.18 | D134: 745656 | F134: 519820 | G134: 225836 | M134: 253 | N134: 403351.65 | O134: 712 | P134: 2266524 | Q134: 76 | R134: 666624 | U134: 0 | V134: 0 | AK134: 82959.53 | AL134: 15153.57 | AN134: 10564.92 | AO134: 4588.65 | AT134: 8197.49 | AU134: 46064.5 | AV134: 13543.97
A135: 111. | B135: г. Магнитогорск, ул. Строителей, д. 40 | C135: 5762066.66 | D135: 0 | K135: 834 | L135: 4411734.58 | M135: 133 | N135: 441974.5 | Q135: 82 | R135: 792288 | U135: 0 | V135: 0 | AK135: 116069.58 | AL135: 0 | AS135: 89656.37 | AT135: 9458.25 | AV135: 16954.96
A136: 112. | B136: г. Магнитогорск, ул. Строителей, д. 40, корп. 1 | C136: 719935.86 | D136: 0 | Q136: 103 | R136: 705600 | U136: 0 | V136: 0 | AK136: 14335.86 | AL136: 0 | AV136: 14335.86
A137: 113. | B137: г. Магнитогорск, ул. Строителей, д. 6 | C137: 3793116 | D137: 0 | O137: 1035 | P137: 3446259.55 | U137: 273654 | V137: 0 | AG137: 273654 | AK137: 73202.45 | AL137: 0 | AU137: 73202.45
A138: 114. | B138: г. Магнитогорск, ул. Тимирязева, д. 33 | C138: 608694.47 | D138: 599274.04 | I138: 599274.04 | U138: 0 | V138: 0 | AK138: 9420.43 | AL138: 9420.43 | AQ138: 9420.43
A139: 115. | B139: г. Магнитогорск, ул. Уральская, д. 26 | C139: 4394320.635 | D139: 3978693.65 | E139: 1067309 | H139: 2172219.19 | I139: 739165.46 | M139: 188 | N139: 339383.52 | U139: 0 | V139: 0 | AK139: 76243.46533 | AL139: 68980.65533 | AM139: 22840.41 | AP139: 34712.47 | AQ139: 11427.77533 | AT139: 7262.81
A140: 116. | B140: г. Магнитогорск, ул. Уральская, д. 30 | C140: 2132377.12 | D140: 2105797.58 | H140: 2105797.58 | U140: 0 | V140: 0 | AK140: 26579.54 | AL140: 26579.54 | AP140: 26579.54
A141: 117. | B141: г. Магнитогорск, ул. Уральская, д. 32 | C141: 2260572.19 | D141: 2233992.65 | H141: 2233992.65 | U141: 0 | V141: 0 | AK141: 26579.54 | AL141: 26579.54 | AP141: 26579.54
A142: 118. | B142: г. Магнитогорск, ул. Уральская, д. 35 | C142: 1322421.77 | D142: 915801.78 | E142: 915801.78 | M142: 234 | N142: 382768.53 | U142: 0 | V142: 0 | AK142: 23851.46 | AL142: 15660.21 | AM142: 15660.21 | AT142: 8191.25
A143: 119. | B143: г. Магнитогорск, ул. Уральская, д. 36/1 | C143: 372821.21 | D143: 0 | M143: 393 | N143: 365010 | U143: 0 | V143: 0 | AK143: 7811.21 | AL143: 0 | AT143: 7811.21
A144: 120. | B144: г. Магнитогорск, ул. Уральская, д. 36/2 | C144: 6257666.65 | D144: 0 | K144: 582 | L144: 5593814.1 | M144: 402 | N144: 532744.2 | U144: 0 | V144: 0 | AK144: 131108.35 | AL144: 0 | AS144: 119707.62 | AT144: 11400.73
A145: 121. | B145: г. Магнитогорск, ул. Уральская, д. 36/3 | C145: 11610270.78 | D145: 0 | K145: 562 | L145: 5593744.7 | M145: 390 | N145: 532744.2 | O145: 1360 | P145: 4362600 | Q145: 102 | R145: 877926.28 | U145: 0 | V145: 0 | AK145: 243255.6 | AL145: 0 | AS145: 119707.62 | AT145: 11400.73 | AU145: 93359.64 | AV145: 18787.61
A146: 122. | B146: г. Магнитогорск, ул. Уральская, д. 38 | C146: 7817570.71 | D146: 1062359.26 | I146: 1062359.26 | K146: 874 | L146: 6134335.21 | M146: 357 | N146: 475220.52 | U146: 0 | V146: 0 | AK146: 145655.72 | AL146: 28703.95 | AQ146: 28703.95 | AS146: 106782.05 | AT146: 10169.72
A147: 123. | B147: г. Магнитогорск, ул. Уральская, д. 40 | C147: 1958262.81 | D147: 1917234 | I147: 1917234 | U147: 0 | V147: 0 | AK147: 41028.81 | AL147: 41028.81 | AQ147: 41028.81
A148: 124. | B148: г. Магнитогорск, ул. Уральская, д. 42 | C148: 26347876.48 | D148: 11909802.97 | E148: 4777090.1 | F148: 3019900 | G148: 1065746 | I148: 3047066.87 | K148: 1788 | L148: 13937985.79 | U148: 0 | V148: 0 | AK148: 500087.72 | AL148: 233123.9 | AM148: 102229.73 | AN148: 64625.86 | AO148: 22806.96 | AQ148: 43461.35 | AS148: 266963.82
A149: 125. | B149: г. Магнитогорск, ул. Уральская, д. 43, корп. 1 | C149: 571280.46 | D149: 0 | M149: 714.9 | N149: 559369.8 | U149: 0 | V149: 0 | AK149: 11910.66 | AL149: 0 | AT149: 11910.66
A150: 126. | B150: г. Магнитогорск, ул. Уральская, д. 45 | C150: 4218523.47 | D150: 0 | O150: 783.93 | P150: 4142829.88 | U150: 0 | V150: 0 | AK150: 75693.59 | AL150: 0 | AU150: 75693.59
A151: 127. | B151: г. Магнитогорск, ул. Уральская, д. 45, корп. 1 | C151: 6718497.05 | D151: 0 | M151: 720.8 | N151: 553487.4 | O151: 1179.18 | P151: 6042175.07 | U151: 0 | V151: 0 | AK151: 122834.58 | AL151: 0 | AT151: 11785.41 | AU151: 111049.17
A152: 128. | B152: г. Магнитогорск, ул. Уральская, д. 53 | C152: 4138282.81 | D152: 4041780.91 | F152: 565654.88 | G152: 280418.47 | H152: 2495323.68 | I152: 700383.88 | U152: 0 | V152: 0 | AK152: 96501.9 | AL152: 96501.9 | AN152: 19741.8 | AO152: 8359.52 | AP152: 53399.93 | AQ152: 15000.65
A153: 129. | B153: г. Магнитогорск, ул. Уральская, д. 55 | C153: 15671763.91 | D153: 0 | K153: 1408 | L153: 9024464.61 | O153: 1844 | P153: 6349972.26 | U153: 0 | V153: 0 | AK153: 297327.04 | AL153: 0 | AS153: 193123.54 | AU153: 104203.5
A154: 130. | B154: г. Магнитогорск, ул. Фадеева, д. 18 | C154: 2122933.893 | D154: 0 | O154: 725.3 | P154: 2096821.8 | U154: 0 | V154: 0 | AK154: 26112.0933 | AL154: 0 | AU154: 26112.0933
A155: 131. | B155: г. Магнитогорск, ул. Фрунзе, д. 17 | C155: 13462831.12 | D155: 4065965.96 | H155: 4065965.96 | M155: 1016.41 | N155: 356144.5 | O155: 1115 | P155: 7482520 | Q155: 85 | R155: 1296939.16 | U155: 0 | V155: 0 | AK155: 261261.5 | AL155: 56545.66 | AP155: 56545.66 | AT155: 16835.41 | AU155: 160125.93 | AV155: 27754.5
A156: 132. | B156: г. Магнитогорск, ул. Чайковского, д. 60 | C156: 11733419.09 | D156: 4353859.84 | E156: 1160920.64 | F156: 522574 | G156: 235653 | H156: 1898941 | I156: 535771.2 | K156: 518 | L156: 3571087.49 | O156: 606 | P156: 3576010 | U156: 0 | V156: 0 | AK156: 232461.76 | AL156: 79063.48 | AM156: 24843.7 | AN156: 11183.08 | AO156: 5042.97 | AP156: 26528.23 | AQ156: 11465.5 | AS156: 76871.67 | AU156: 76526.61
A157: 133. | B157: г. Магнитогорск, ул. Чайковского, д. 76 | C157: 3727484.39 | D157: 0 | M157: 402.36 | N157: 311426.64 | O157: 833.8 | P157: 2824549.5 | Q157: 91 | R157: 513411.36 | U157: 0 | V157: 0 | AK157: 78096.89 | AL157: 0 | AT157: 6664.53 | AU157: 60445.36 | AV157: 10987
A158: 134. | B158: г. Магнитогорск, ул. Чапаева, д. 4 | C158: 1228626.94 | D158: 0 | Q158: 80 | R158: 1202885.2 | U158: 0 | V158: 0 | AK158: 25741.74 | AL158: 0 | AV158: 25741.74
A159: 135. | B159: г. Магнитогорск, ул. Чапаева, д. 8 | C159: 1370882.84 | D159: 0 | Q159: 137 | R159: 1342160.6 | U159: 0 | V159: 0 | AK159: 28722.24 | AL159: 0 | AV159: 28722.24
A160: Итого по Магнитогорскому городскому округу | C160: =SUM(C60:C159) -> 394568773.3 | D160: =SUM(D60:D159) -> 128889416.6 | E160: 23961458.91 | F160: 23930642.62 | G160: 7881920.12 | H160: 33976232.86 | I160: 39139162.07 | J160: 0 | K160: 16080.39 | L160: 115890025.5 | M160: 15503.97533 | N160: 16362829.37 | O160: 19735.51 | P160: 85744001.37 | Q160: 4179.63 | R160: 39639912.28 | S160: 0 | T160: 0 | U160: 802168.05 | V160: 0 | W160: 0 | X160: 0 | Y160: 0 | Z160: 0 | AA160: 0 | AB160: 0 | AC160: 0 | AD160: 434007.81 | AE160: 0 | AF160: 0 | AG160: 273654 | AH160: 0 | AI160: 0 | AJ160: 94506.24 | AK160: 7240420.196 | AL160: 2199256.708 | AM160: 322097.0916 | AN160: 535734.2815 | AO160: 186422.1671 | AP160: 465864.592 | AQ160: 689138.5753 | AR160: 0 | AS160: 2346037.38 | AT160: 357089.35 | AU160: 1491975.689 | AV160: 846061.07 | AW160: 0 | AX160: 0
A161: Миасский городской округ
A162: 136. | B162: г. Миасс, ж/д ст. п. Хребет, ул. 40 лет Октября, д. 10 | C162: =SUM(D162,L162,N162,P162,R162:U162,AK162) -> 7139130.13 | D162: =SUM(E162:J162) -> 3766172.05 | E162: 989959.52 | G162: 175943.62 | H162: 1942687.96 | I162: 657580.95 | O162: 800 | P162: 2681048.22 | Q162: 111.09 | R162: 659920.4 | U162: =SUM(W162:AJ162) -> 0 | V162: =SUM(W162:AB162) -> 0 | AK162: =SUM(AM162:AX162) -> 31989.46 | AL162: =SUM(AM162:AR162) -> 16951.66 | AM162: 4455.84 | AO162: 791.93 | AP162: 8744.1 | AQ162: 2959.79 | AU162: 12067.48 | AV162: 2970.32
A163: 137. | B163: г. Миасс, ж/д ст. п. Хребет, ул. 40 лет Октября, д. 11 | C163: 5247165.89 | D163: 1906449.86 | E163: 603017.41 | G163: 115915.8 | H163: 1187516.65 | K163: 386 | L163: 2915571.41 | Q163: 72.8 | R163: 401632.8 | U163: 0 | V163: 0 | AK163: 23511.82 | AL163: 8580.99 | AM163: 2714.2 | AO163: 521.74 | AP163: 5345.05 | AS163: 13123.07 | AV163: 1807.76
A164: 138. | B164: г. Миасс, ж/д ст. п. Хребет, ул. 40 лет Октября, д. 8 | C164: 7317830.58 | D164: 3874135.85 | E164: 994112.53 | G164: 175943.62 | H164: 2050193.03 | I164: 653886.67 | O164: 449.27 | P164: 2752166.04 | Q164: 148.1 | R164: 658738.51 | U164: 0 | V164: 0 | AK164: 32790.18 | AL164: 17437.6 | AM164: 4474.53 | AO164: 791.93 | AP164: 9227.98 | AQ164: 2943.16 | AU164: 12387.58 | AV164: 2965
A165: 139. | B165: г. Миасс, п. Нижний Атлян, ул. Городок, д. 12 | C165: 8082402.85 | D165: 454469 | E165: 454469 | K165: 321.4 | L165: 2388024.32 | O165: 560 | P165: 4797627.12 | Q165: 27.62 | R165: 322331.52 | U165: 0 | V165: 0 | AK165: 119950.89 | AL165: 8263.11 | AM165: 8263.11 | AS165: 43434.37 | AU165: 62392.15 | AV165: 5861.26
A166: 140. | B166: г. Миасс, пр-кт Автозаводцев, д. 19 | C166: 1502139.08 | D166: 0 | Q166: 198 | R166: 1495408.2 | U166: 0 | V166: 0 | AK166: 6730.88 | AL166: 0 | AV166: 6730.88
A167: 141. | B167: г. Миасс, ул. 8 Июля, д. 23 | C167: 3404586.55 | D167: 0 | O167: 714 | P167: 2818289.17 | Q167: 81.8 | R167: 571041.9 | U167: 0 | V167: 0 | AK167: 15255.48 | AL167: 0 | AU167: 12685.2 | AV167: 2570.28
A168: 142. | B168: г. Миасс, ул. 8 Июля, д. 25 | C168: 3467774.84 | D168: 0 | O168: 709 | P168: 2915282.66 | Q168: 81.8 | R168: 536953.56 | U168: 0 | V168: 0 | AK168: 15538.62 | AL168: 0 | AU168: 13121.78 | AV168: 2416.84
A169: 143. | B169: г. Миасс, ул. Готвальда, д. 40 | C169: 6906345.12 | D169: 0 | K169: 944 | L169: 6782364.76 | U169: 0 | V169: 0 | AK169: 123980.36 | AL169: 0 | AS169: 123980.36
A170: 144. | B170: г. Миасс, ул. Ильменская, д. 124 | C170: 58979.46 | D170: 0 | U170: 58979.46 | V170: 0 | AC170: 58979.46 | AK170: 0 | AL170: 0
A171: 145. | B171: г. Миасс, ул. Ильменская, д. 126 | C171: 57411.83 | D171: 0 | U171: 57411.83 | V171: 0 | AC171: 57411.83 | AK171: 0 | AL171: 0
A172: 146. | B172: г. Миасс, ул. Ильменская, д. 128 | C172: 56438.64 | D172: 0 | U172: 56438.64 | V172: 0 | AC172: 56438.64 | AK172: 0 | AL172: 0
A173: 147. | B173: г. Миасс, ул. Ильменская, д. 130 | C173: 58790.25 | D173: 0 | U173: 58790.25 | V173: 0 | AC173: 58790.25 | AK173: 0 | AL173: 0
A174: 148. | B174: г. Миасс, ул. Ильменская, д. 132 | C174: 57249.54 | D174: 0 | U174: 57249.54 | V174: 0 | AC174: 57249.54 | AK174: 0 | AL174: 0
A175: 149. | B175: г. Миасс, ул. Калинина, д. 19 | C175: 14893524.05 | D175: 3946409.6 | E175: 953295.2 | F175: 580650 | G175: 257140 | H175: 1369294.4 | I175: 786030 | K175: 660 | L175: 4997872 | O175: 638.3 | P175: 5117666.4 | Q175: 80 | R175: 595257.6 | U175: 0 | V175: 0 | AK175: 236318.45 | AL175: 68036.76 | AM175: 17332.72 | AN175: 10562.11 | AO175: 4676.11 | AP175: 21169.38 | AQ175: 14296.44 | AS175: 90903.36 | AU175: 66554.2 | AV175: 10824.13
A176: 150. | B176: г. Миасс, ул. Калинина, д. 23 | C176: 9604758.5 | D176: 2286386.2 | E176: 1078931.2 | F176: 439635 | G176: 201240 | I176: 566580 | M176: 146.7 | N176: 179700.98 | O176: 845 | P176: 6406962.21 | Q176: 86 | R176: 592281.31 | U176: 0 | V176: 0 | AK176: 139427.8 | AL176: 41578.66 | AM176: 19617.02 | AN176: 7997.03 | AO176: 3659.57 | AQ176: 10305.04 | AT176: 3285.09 | AU176: 83739.92 | AV176: 10824.13
A177: 151. | B177: г. Миасс, ул. Калинина, д. 25 | C177: 10473751.73 | D177: 4723494.43 | E177: 1056368 | F177: 580650 | G177: 257140 | H177: 2043306.43 | I177: 786030 | K177: 645 | L177: 4972882.64 | Q177: 11.8 | R177: 592281.31 | U177: 0 | V177: 0 | AK177: 185093.35 | AL177: 83365.86 | AM177: 19206.78 | AN177: 10562.11 | AO177: 4676.11 | AP177: 34624.42 | AQ177: 14296.44 | AS177: 90903.36 | AV177: 10824.13
A178: 152. | B178: г. Миасс, ул. Калинина, д. 33 | C178: 9399888.21 | D178: 995536.42 | E178: 995536.42 | K178: 637 | L178: 4627513.8 | O178: 736 | P178: 3183706.5 | Q178: 11.5 | R178: 551011.89 | U178: 0 | V178: 0 | AK178: 42119.6 | AL178: 4480.94 | AM178: 4480.94 | AS178: 20828.58 | AU178: 14329.96 | AV178: 2480.12
A179: 153. | B179: г. Миасс, ул. Островского, д. 82 | C179: 36490.5 | D179: 0 | U179: 36490.5 | V179: 0 | AC179: 36490.5 | AK179: 0 | AL179: 0
A180: 154. | B180: г. Миасс, ул. Островского, д. 84 | C180: 36463.47 | D180: 0 | U180: 36463.47 | V180: 0 | AC180: 36463.47 | AK180: 0 | AL180: 0
A181: 155. | B181: г. Миасс, ул. Романенко, д. 81 | C181: 104460 | D181: 0 | U181: 104460 | V181: 0 | AC181: 104460 | AK181: 0 | AL181: 0
A182: 156. | B182: г. Миасс, ул. Романенко, д. 83 | C182: 36679.71 | D182: 0 | U182: 36679.71 | V182: 0 | AC182: 36679.71 | AK182: 0 | AL182: 0
A183: 157. | B183: г. Миасс, ул. Тухачевского, д. 8 | C183: 8782735.94 | D183: 3151019.12 | E183: 659142.48 | F183: 273957.45 | G183: 107636.1 | H183: 1386205.19 | I183: 724077.9 | K183: 487 | L183: 3565721.25 | O183: 667 | P183: 1644055.72 | Q183: 85 | R183: 382585.63 | U183: 0 | V183: 0 | AK183: 39354.22 | AL183: 14182.82 | AM183: 2966.81 | AN183: 1233.09 | AO183: 484.47 | AP183: 6239.35 | AQ183: 3259.1 | AS183: 16049.42 | AU183: 7399.95 | AV183: 1722.03
A184: 158. | B184: г. Миасс, ул. Уральская, д. 104 | C184: 74440.62 | D184: 0 | U184: 74440.62 | V184: 0 | AC184: 74440.62 | AK184: 0 | AL184: 0
A185: Итого по Миасскому городскому округу | C185: =SUM(C161:C184) -> 96799437.49 | D185: =SUM(D161:D184) -> 25104072.53 | E185: 7784831.76 | F185: 1874892.45 | G185: 1290959.14 | H185: 9979203.66 | I185: 4174185.52 | J185: 0 | K185: 4080.4 | L185: 30249950.18 | M185: 146.7 | N185: 179700.98 | O185: 6118.57 | P185: 32316804.04 | Q185: 995.51 | R185: 7359444.63 | S185: 0 | T185: 0 | U185: 577404.02 | V185: 0 | W185: 0 | X185: 0 | Y185: 0 | Z185: 0 | AA185: 0 | AB185: 0 | AC185: 577404.02 | AD185: 0 | AE185: 0 | AF185: 0 | AG185: 0 | AH185: 0 | AI185: 0 | AJ185: 0 | AK185: 1012061.11 | AL185: 262878.4 | AM185: 83511.95 | AN185: 30354.34 | AO185: 15601.86 | AP185: 85350.28 | AQ185: 48059.97 | AR185: 0 | AS185: 399222.52 | AT185: 3285.09 | AU185: 284678.22 | AV185: 61996.88 | AW185: 0 | AX185: 0
A186: Озерский городской округ
A187: 159. | B187: г. Озерск, пр-кт Карла Маркса, д. 3 | C187: =SUM(D187,L187,N187,P187,R187:U187,AK187) -> 112606.28 | D187: =SUM(E187:J187) -> 0 | U187: =SUM(W187:AJ187) -> 112606.28 | V187: =SUM(W187:AB187) -> 112606.28 | AB187: 112606.28 | AK187: =SUM(AM187:AX187) -> 0 | AL187: =SUM(AM187:AR187) -> 0
A188: 160. | B188: г. Озерск, пр-кт Карла Маркса, д. 5 | C188: 112591.64 | D188: 0 | U188: 112591.64 | V188: 112591.64 | AB188: 112591.64 | AK188: 0 | AL188: 0
A189: 161. | B189: г. Озерск, пр-кт Карла Маркса, д. 9 | C189: 135385.47 | D189: 0 | U189: 135385.47 | V189: 135385.47 | AB189: 135385.47 | AK189: 0 | AL189: 0
A190: 162. | B190: г. Озерск, пр-кт Ленина, д. 22 | C190: 2656664.97 | D190: 0 | K190: 642 | L190: 2601276 | U190: 0 | V190: 0 | AK190: 55388.97 | AL190: 0 | AS190: 55388.97
A191: 163. | B191: г. Озерск, пр-кт Ленина, д. 23 | C191: 3644231.3 | D191: 0 | K191: 642 | L191: 3590318.4 | U191: 0 | V191: 0 | AK191: 53912.9 | AL191: 0 | AS191: 53912.9
A192: 164. | B192: г. Озерск, пр-кт Ленина, д. 3 | C192: 45084.88 | D192: 0 | U192: 45084.88 | V192: 45084.88 | AB192: 45084.88 | AK192: 0 | AL192: 0
A193: 165. | B193: г. Озерск, пр-кт Ленина, д. 4 | C193: 1593479.22 | D193: 1583648.4 | H193: 1583648.4 | U193: 0 | V193: 0 | AK193: 9830.82 | AL193: 9830.82 | AP193: 9830.82
A194: 166. | B194: г. Озерск, пр-кт Ленина, д. 5 | C194: 1597425.6 | D194: 1587566.4 | H194: 1587566.4 | U194: 0 | V194: 0 | AK194: 9859.2 | AL194: 9859.2 | AP194: 9859.2
A195: 167. | B195: г. Озерск, пр-кт Ленина, д. 54 | C195: 43954.42 | D195: 0 | U195: 43954.42 | V195: 43954.42 | AB195: 43954.42 | AK195: 0 | AL195: 0
A196: 168. | B196: г. Озерск, пр-кт Ленина, д. 60 | C196: 98444.41 | D196: 0 | U196: 98444.41 | V196: 98444.41 | AB196: 98444.41 | AK196: 0 | AL196: 0
A197: 169. | B197: г. Озерск, пр-кт Ленина, д. 64 | C197: 104727.74 | D197: 0 | U197: 104727.74 | V197: 104727.74 | AB197: 104727.74 | AK197: 0 | AL197: 0
A198: 170. | B198: г. Озерск, пр-кт Ленина, д. 67 | C198: 82420.49 | D198: 0 | U198: 0 | V198: 0 | AK198: 82420.49 | AL198: 82420.49 | AP198: 82420.49
A199: 171. | B199: г. Озерск, пр-кт Ленина, д. 76 | C199: 85832.77 | D199: 0 | U199: 85832.77 | V199: 85832.77 | AB199: 85832.77 | AK199: 0 | AL199: 0
A200: 172. | B200: г. Озерск, пр-кт Ленина, д. 78 | C200: 71039.54 | D200: 0 | U200: 71039.54 | V200: 71039.54 | AB200: 71039.54 | AK200: 0 | AL200: 0
A201: 173. | B201: г. Озерск, пр-кт Ленина, д. 79 | C201: 87318.16 | D201: 0 | U201: 87318.16 | V201: 87318.16 | AB201: 87318.16 | AK201: 0 | AL201: 0
A202: 174. | B202: г. Озерск, пр-кт Ленина, д. 8 | C202: 1573799.57 | D202: 1564053.6 | H202: 1564053.6 | U202: 0 | V202: 0 | AK202: 9745.97 | AL202: 9745.97 | AP202: 9745.97
... 434 more rows
